[Event "Titled Tuesday Blitz June 27 Early 2023"]
[White "Sarana, Alexey"]
[Black "Zhu, Jiner"]
[WhiteFideId "24133795"]
[BlackFideId "8608059"]
[WhiteElo "3017"]
[BlackElo "2721"]
[Result "1-0"]
[Round "5"]
[TimeControl "180+2"]
[Date "2023.06.27"]
[WhiteClock "0:02:00"]
[BlackClock "0:00:27"]
[Board "19"]

1. d4 {[%clk 0:03:00]}  Nf6 {[%clk 0:02:59]} 2. c4 {[%clk 0:03:00]}  e6 {[%clk 0:02:59]} 3. Nc3 {[%clk 0:03:00]}  Bb4 {[%clk 0:03:00]} 4. e3 {[%clk 0:03:01]}  O-O {[%clk 0:02:59]} 5. Bd3 {[%clk 0:03:01]}  d5 {[%clk 0:02:59]} 6. a3 {[%clk 0:03:01]}  Bxc3+ {[%clk 0:02:59]} 7. bxc3 {[%clk 0:03:02]}  dxc4 {[%clk 0:02:58]} 8. Bxc4 {[%clk 0:03:03]}  c5 {[%clk 0:02:58]} 9. Ne2 {[%clk 0:03:04]}  Qc7 {[%clk 0:02:52]} 10. Qd3 {[%clk 0:03:04]}  Nc6 {[%clk 0:02:41]} 11. e4 {[%clk 0:03:00]}  cxd4 {[%clk 0:02:27]} 12. cxd4 {[%clk 0:02:58]}  Rd8 {[%clk 0:02:28]} 13. Ba2 {[%clk 0:02:31]}  Nxd4 {[%clk 0:02:22]} 14. Nxd4 {[%clk 0:02:29]}  e5 {[%clk 0:02:22]} 15. Qc2 {[%clk 0:02:16]}  Qxc2 {[%clk 0:01:02]} 16. Nxc2 {[%clk 0:02:17]}  Nxe4 {[%clk 0:01:02]} 17. Ne3 {[%clk 0:02:09]}  Nc3 {[%clk 0:00:45]} 18. Bb3 {[%clk 0:02:07]}  Nb5 {[%clk 0:00:41]} 19. Bb2 {[%clk 0:02:04]}  Nd4 {[%clk 0:00:41]} 20. Bd1 {[%clk 0:02:03]}  b6 {[%clk 0:00:40]} 21. O-O {[%clk 0:02:02]}  Ba6 {[%clk 0:00:39]} 22. Re1 {[%clk 0:02:03]}  Rac8 {[%clk 0:00:37]} 23. a4 {[%clk 0:02:00]}  f6 {[%clk 0:00:33]} 24. a5 {[%clk 0:02:00]}  b5 {[%clk 0:00:32]} 25. Bxd4 {[%clk 0:01:59]}  Rxd4 {[%clk 0:00:31]} 26. Nf5 {[%clk 0:02:00]}  Rd7 {[%clk 0:00:27]} 27. Bb3+ {[%clk 0:02:00]} 1-0


[Site "https://www.chess.com"]

[Event "Titled Tuesday Blitz June 27 Early 2023"]
[White "Matinian, Nikita"]
[Black "Terry, Renato"]
[WhiteFideId "24129100"]
[BlackFideId "3803457"]
[WhiteElo "2720"]
[BlackElo "2995"]
[Result "0-1"]
[Round "5"]
[TimeControl "180+2"]
[Date "2023.06.27"]
[WhiteClock "0:00:00"]
[BlackClock "0:00:07"]
[Board "20"]

1. e4 {[%clk 0:03:00]}  c6 {[%clk 0:02:56]} 2. d4 {[%clk 0:03:00]}  d5 {[%clk 0:02:57]} 3. e5 {[%clk 0:03:01]}  c5 {[%clk 0:02:57]} 4. Nf3 {[%clk 0:03:00]}  cxd4 {[%clk 0:02:56]} 5. Qxd4 {[%clk 0:03:00]}  Nc6 {[%clk 0:02:57]} 6. Qf4 {[%clk 0:03:00]}  e6 {[%clk 0:02:54]} 7. Bd3 {[%clk 0:02:59]}  Nb4 {[%clk 0:02:54]} 8. O-O {[%clk 0:02:58]}  Nxd3 {[%clk 0:02:54]} 9. cxd3 {[%clk 0:02:58]}  Ne7 {[%clk 0:02:52]} 10. h4 {[%clk 0:02:54]}  Nf5 {[%clk 0:02:50]} 11. h5 {[%clk 0:02:52]}  h6 {[%clk 0:02:44]} 12. Nc3 {[%clk 0:02:50]}  Be7 {[%clk 0:02:40]} 13. Nb5 {[%clk 0:02:43]}  O-O {[%clk 0:02:39]} 14. g4 {[%clk 0:02:39]}  Nh4 {[%clk 0:02:38]} 15. Nxh4 {[%clk 0:02:38]}  Bxh4 {[%clk 0:02:39]} 16. Be3 {[%clk 0:02:27]}  f5 {[%clk 0:02:19]} 17. exf6 {[%clk 0:02:11]}  Rxf6 {[%clk 0:02:17]} 18. Qd6 {[%clk 0:01:59]}  Bd7 {[%clk 0:02:14]} 19. Nc7 {[%clk 0:01:52]}  Rc8 {[%clk 0:02:13]} 20. Rac1 {[%clk 0:01:52]}  Kh7 {[%clk 0:01:26]} 21. Bd4 {[%clk 0:01:14]}  e5 {[%clk 0:00:48]} 22. Qxe5 {[%clk 0:01:15]}  Bxg4 {[%clk 0:00:44]} 23. Nxd5 {[%clk 0:01:10]}  Rf7 {[%clk 0:00:38]} 24. Qe4+ {[%clk 0:00:50]}  Bf5 {[%clk 0:00:38]} 25. Rxc8 {[%clk 0:00:50]}  Qg5+ {[%clk 0:00:35]} 26. Qg2 {[%clk 0:00:50]}  Bxc8 {[%clk 0:00:32]} 27. Qxg5 {[%clk 0:00:47]}  Bxg5 {[%clk 0:00:27]} 28. f4 {[%clk 0:00:47]}  Bd8 {[%clk 0:00:27]} 29. Be5 {[%clk 0:00:35]}  Bg4 {[%clk 0:00:19]} 30. Rc1 {[%clk 0:00:31]}  Rd7 {[%clk 0:00:20]} 31. Ne3 {[%clk 0:00:30]}  Bxh5 {[%clk 0:00:19]} 32. d4 {[%clk 0:00:31]}  Bb6 {[%clk 0:00:19]} 33. Rc4 {[%clk 0:00:12]}  Bf7 {[%clk 0:00:19]} 34. Rb4 {[%clk 0:00:09]}  Bxa2 {[%clk 0:00:16]} 35. Kf2 {[%clk 0:00:07]}  Be6 {[%clk 0:00:13]} 36. Kf3 {[%clk 0:00:07]}  g6 {[%clk 0:00:13]} 37. Ke4 {[%clk 0:00:07]}  Bh3 {[%clk 0:00:09]} 38. Rc4 {[%clk 0:00:06]}  Rd8 {[%clk 0:00:04]} 39. b4 {[%clk 0:00:03]}  Kg8 {[%clk 0:00:03]} 40. Kf3 {[%clk 0:00:02]}  Be6 {[%clk 0:00:03]} 41. d5 {[%clk 0:00:02]}  Bf7 {[%clk 0:00:03]} 42. Ke4 {[%clk 0:00:02]}  Bxe3 {[%clk 0:00:03]} 43. Kxe3 {[%clk 0:00:02]}  Bxd5 {[%clk 0:00:04]} 44. Rc7 {[%clk 0:00:02]}  Kf8 {[%clk 0:00:01]} 45. Rh7 {[%clk 0:00:02]}  Bf7 {[%clk 0:00:01]} 46. Rxh6 {[%clk 0:00:02]}  Ke7 {[%clk 0:00:01]} 47. Rh7 {[%clk 0:00:02]}  Rg8 {[%clk 0:00:02]} 48. Rg7 {[%clk 0:00:02]}  Re8 {[%clk 0:00:02]} 49. Rh7 {[%clk 0:00:02]}  Ke6 {[%clk 0:00:02]} 50. Rh1 {[%clk 0:00:02]}  Rc8 {[%clk 0:00:03]} 51. Rd1 {[%clk 0:00:02]}  Rc6 {[%clk 0:00:03]} 52. Rd8 {[%clk 0:00:02]}  Ke7 {[%clk 0:00:03]} 53. Rb8 {[%clk 0:00:02]}  Rb6 {[%clk 0:00:03]} 54. Bd4 {[%clk 0:00:01]}  Rb5 {[%clk 0:00:04]} 55. Bc5+ {[%clk 0:00:01]}  Kd7 {[%clk 0:00:04]} 56. Bxa7 {[%clk 0:00:02]}  Rxb4 {[%clk 0:00:04]} 57. Bd4 {[%clk 0:00:02]}  Be6 {[%clk 0:00:04]} 58. Ke4 {[%clk 0:00:02]}  Bf5+ {[%clk 0:00:03]} 59. Ke5 {[%clk 0:00:02]}  Rb5+ {[%clk 0:00:03]} 60. Kf6 {[%clk 0:00:03]}  Kc6 {[%clk 0:00:04]} 61. Be5 {[%clk 0:00:03]}  Kd5 {[%clk 0:00:04]} 62. Rd8+ {[%clk 0:00:03]}  Ke4 {[%clk 0:00:04]} 63. Rd4+ {[%clk 0:00:03]}  Ke3 {[%clk 0:00:05]} 64. Rd1 {[%clk 0:00:03]}  Rb3 {[%clk 0:00:04]} 65. Re1+ {[%clk 0:00:02]}  Kf3 {[%clk 0:00:04]} 66. Rg1 {[%clk 0:00:03]}  b5 {[%clk 0:00:04]} 67. Kg5 {[%clk 0:00:02]}  b4 {[%clk 0:00:04]} 68. Rc1 {[%clk 0:00:02]}  Ke4 {[%clk 0:00:04]} 69. Rc6 {[%clk 0:00:02]}  Kd5 {[%clk 0:00:04]} 70. Rd6+ {[%clk 0:00:03]}  Kc5 {[%clk 0:00:04]} 71. Rd8 {[%clk 0:00:03]}  Rb1 {[%clk 0:00:04]} 72. Rb8 {[%clk 0:00:03]}  b3 {[%clk 0:00:05]} 73. Kf6 {[%clk 0:00:04]}  Kc4 {[%clk 0:00:05]} 74. Kg5 {[%clk 0:00:03]}  Bc2 {[%clk 0:00:05]} 75. Kf6 {[%clk 0:00:03]}  Kd5 {[%clk 0:00:06]} 76. Kg5 {[%clk 0:00:04]}  Ke6 {[%clk 0:00:06]} 77. Rb6+ {[%clk 0:00:04]}  Kd7 {[%clk 0:00:07]} 78. Kf6 {[%clk 0:00:04]}  Rf1 {[%clk 0:00:07]} 79. Rb8 {[%clk 0:00:03]}  Kc6 {[%clk 0:00:07]} 80. Kg5 {[%clk 0:00:03]}  Rg1+ {[%clk 0:00:07]} 81. Kf6 {[%clk 0:00:03]}  Rg4 {[%clk 0:00:07]} 82. Rc8+ {[%clk 0:00:02]}  Kd5 {[%clk 0:00:08]} 83. Rb8 {[%clk 0:00:03]}  Ke4 {[%clk 0:00:08]} 84. Rb4+ {[%clk 0:00:03]}  Kd3 {[%clk 0:00:09]} 85. Rb8 {[%clk 0:00:03]}  Ke2 {[%clk 0:00:09]} 86. Rb6 {[%clk 0:00:02]}  Rg1 {[%clk 0:00:09]} 87. Rb8 {[%clk 0:00:02]}  Kf3 {[%clk 0:00:08]} 88. Rb6 {[%clk 0:00:02]}  Rh1 {[%clk 0:00:07]} 89. Rb4 {[%clk 0:00:02]}  Rh7 {[%clk 0:00:06]} 90. Rb6 {[%clk 0:00:02]}  Rh5 {[%clk 0:00:07]} 91. Rb4 {[%clk 0:00:02]}  Rf5+ {[%clk 0:00:07]} 92. Kg7 {[%clk 0:00:00]}  g5 {[%clk 0:00:07]} 0-1


[Site "https://www.chess.com"]

[Event "Titled Tuesday Blitz June 27 Early 2023"]
[White "Sjugirov, Sanan"]
[Black "Hambleton, Aman"]
[WhiteFideId "4189302"]
[BlackFideId "2606577"]
[WhiteElo "2967"]
[BlackElo "2707"]
[Result "1-0"]
[Round "5"]
[TimeControl "180+2"]
[Date "2023.06.27"]
[WhiteClock "0:01:50"]
[BlackClock "0:00:00"]
[Board "22"]

1. d4 {[%clk 0:03:00]}  Nf6 {[%clk 0:02:57]} 2. c4 {[%clk 0:03:01]}  e6 {[%clk 0:02:38]} 3. Nc3 {[%clk 0:03:01]}  Bb4 {[%clk 0:02:37]} 4. e3 {[%clk 0:03:01]}  O-O {[%clk 0:02:23]} 5. Ne2 {[%clk 0:03:02]}  Re8 {[%clk 0:02:22]} 6. Ng3 {[%clk 0:03:01]}  d5 {[%clk 0:02:21]} 7. Be2 {[%clk 0:03:01]}  dxc4 {[%clk 0:01:59]} 8. Bxc4 {[%clk 0:03:02]}  c5 {[%clk 0:01:59]} 9. O-O {[%clk 0:03:02]}  cxd4 {[%clk 0:01:47]} 10. exd4 {[%clk 0:03:03]}  Nc6 {[%clk 0:01:38]} 11. Be3 {[%clk 0:03:03]}  Ne7 {[%clk 0:01:30]} 12. a3 {[%clk 0:02:41]}  Bd6 {[%clk 0:01:12]} 13. Bg5 {[%clk 0:02:34]}  Ng6 {[%clk 0:00:35]} 14. Bb5 {[%clk 0:02:28]}  Rf8 {[%clk 0:00:26]} 15. Bd3 {[%clk 0:02:19]}  h6 {[%clk 0:00:16]} 16. Bxf6 {[%clk 0:02:14]}  Qxf6 {[%clk 0:00:07]} 17. Nce4 {[%clk 0:02:12]}  Qxd4 {[%clk 0:00:02]} 18. Nxd6 {[%clk 0:02:07]}  Qxd6 {[%clk 0:00:03]} 19. Bxg6 {[%clk 0:02:07]}  Qxd1 {[%clk 0:00:04]} 20. Bxf7+ {[%clk 0:02:08]}  Kxf7 {[%clk 0:00:04]} 21. Raxd1 {[%clk 0:02:08]}  Ke7 {[%clk 0:00:03]} 22. Rc1 {[%clk 0:01:56]}  Bd7 {[%clk 0:00:01]} 23. Rc7 {[%clk 0:01:53]}  Rab8 {[%clk 0:00:02]} 24. Rd1 {[%clk 0:01:52]}  Rfd8 {[%clk 0:00:02]} 25. Ne4 {[%clk 0:01:51]}  Ke8 {[%clk 0:00:01]} 26. Nd6+ {[%clk 0:01:50]}  Ke7 {[%clk 0:00:00]} 27. Nxb7 {[%clk 0:01:50]} 1-0


[Site "https://www.chess.com"]

[Event "Titled Tuesday Blitz June 27 Early 2023"]
[White "Fromm, Marius"]
[Black "Sanal, Vahap"]
[WhiteFideId "12993190"]
[BlackFideId "6300545"]
[WhiteElo "2706"]
[BlackElo "2951"]
[Result "0-1"]
[Round "5"]
[TimeControl "180+2"]
[Date "2023.06.27"]
[WhiteClock "0:00:23"]
[BlackClock "0:01:27"]
[Board "23"]

1. e4 {[%clk 0:03:00]}  c5 {[%clk 0:02:50]} 2. Nf3 {[%clk 0:03:01]}  e6 {[%clk 0:02:49]} 3. d4 {[%clk 0:03:01]}  cxd4 {[%clk 0:02:47]} 4. Nxd4 {[%clk 0:03:02]}  a6 {[%clk 0:02:47]} 5. Bd3 {[%clk 0:03:00]}  Nf6 {[%clk 0:02:45]} 6. O-O {[%clk 0:03:00]}  d6 {[%clk 0:02:45]} 7. c4 {[%clk 0:02:57]}  Be7 {[%clk 0:02:45]} 8. Nc3 {[%clk 0:02:57]}  b6 {[%clk 0:02:45]} 9. f4 {[%clk 0:02:55]}  Qc7 {[%clk 0:02:45]} 10. Kh1 {[%clk 0:02:55]}  Nbd7 {[%clk 0:02:44]} 11. Qe2 {[%clk 0:02:43]}  O-O {[%clk 0:02:41]} 12. Be3 {[%clk 0:02:39]}  Re8 {[%clk 0:02:39]} 13. Rac1 {[%clk 0:02:38]}  Bb7 {[%clk 0:02:39]} 14. Bb1 {[%clk 0:02:25]}  Rac8 {[%clk 0:02:38]} 15. b3 {[%clk 0:02:25]}  Qb8 {[%clk 0:02:37]} 16. Qf3 {[%clk 0:02:03]}  Qa8 {[%clk 0:02:33]} 17. Qh3 {[%clk 0:01:41]}  Nxe4 {[%clk 0:02:13]} 18. Nxe6 {[%clk 0:01:37]}  fxe6 {[%clk 0:02:13]} 19. Nxe4 {[%clk 0:01:26]}  Nf8 {[%clk 0:02:06]} 20. Ng5 {[%clk 0:01:23]}  Bxg5 {[%clk 0:02:04]} 21. fxg5 {[%clk 0:01:24]}  Ng6 {[%clk 0:02:03]} 22. Rf2 {[%clk 0:01:18]}  b5 {[%clk 0:02:01]} 23. Rcf1 {[%clk 0:01:00]}  bxc4 {[%clk 0:01:57]} 24. Rf7 {[%clk 0:01:00]}  Be4 {[%clk 0:01:36]} 25. Ra7 {[%clk 0:00:46]}  Qd5 {[%clk 0:01:31]} 26. Bxe4 {[%clk 0:00:43]}  Qxe4 {[%clk 0:01:31]} 27. Rff7 {[%clk 0:00:40]}  Re7 {[%clk 0:01:27]} 28. Raxe7 {[%clk 0:00:37]}  Nxe7 {[%clk 0:01:28]} 29. Rxe7 {[%clk 0:00:38]}  cxb3 {[%clk 0:01:27]} 30. axb3 {[%clk 0:00:23]}  Rc1+ {[%clk 0:01:27]} 0-1


[Site "https://www.chess.com"]

[Event "Titled Tuesday Blitz June 27 Early 2023"]
[White "Suleymanli, Aydin"]
[Black "Petrosian, Karlen"]
[WhiteFideId "13413937"]
[BlackFideId "4176146"]
[WhiteElo "2936"]
[BlackElo "2704"]
[Result "1-0"]
[Round "5"]
[TimeControl "180+2"]
[Date "2023.06.27"]
[WhiteClock "0:00:54"]
[BlackClock "0:00:04"]
[Board "25"]

1. e4 {[%clk 0:02:34]}  e6 {[%clk 0:02:59]} 2. d4 {[%clk 0:02:31]}  d5 {[%clk 0:03:00]} 3. Nd2 {[%clk 0:02:32]}  h6 {[%clk 0:03:00]} 4. Ngf3 {[%clk 0:02:32]}  Nf6 {[%clk 0:03:00]} 5. e5 {[%clk 0:02:29]}  Nfd7 {[%clk 0:03:00]} 6. c3 {[%clk 0:02:29]}  c5 {[%clk 0:03:00]} 7. a3 {[%clk 0:02:29]}  Nc6 {[%clk 0:03:00]} 8. b4 {[%clk 0:02:29]}  cxd4 {[%clk 0:02:55]} 9. cxd4 {[%clk 0:02:30]}  Qb6 {[%clk 0:02:17]} 10. Bb2 {[%clk 0:02:29]}  f6 {[%clk 0:02:15]} 11. Bd3 {[%clk 0:02:21]}  f5 {[%clk 0:01:53]} 12. Nh4 {[%clk 0:02:08]}  g5 {[%clk 0:01:18]} 13. Qh5+ {[%clk 0:01:58]}  Kd8 {[%clk 0:01:18]} 14. Ng6 {[%clk 0:01:57]}  Rh7 {[%clk 0:01:17]} 15. Nxf8 {[%clk 0:01:33]}  Nxf8 {[%clk 0:01:18]} 16. Nb3 {[%clk 0:01:31]}  Bd7 {[%clk 0:01:13]} 17. O-O {[%clk 0:01:23]}  Be8 {[%clk 0:00:59]} 18. Qd1 {[%clk 0:01:22]}  Rc8 {[%clk 0:00:57]} 19. Rc1 {[%clk 0:01:20]}  Ng6 {[%clk 0:00:54]} 20. Nc5 {[%clk 0:01:18]}  Bf7 {[%clk 0:00:43]} 21. Na4 {[%clk 0:01:12]}  Qc7 {[%clk 0:00:39]} 22. b5 {[%clk 0:01:12]}  g4 {[%clk 0:00:34]} 23. bxc6 {[%clk 0:01:11]}  bxc6 {[%clk 0:00:35]} 24. Bc3 {[%clk 0:01:09]}  Qe7 {[%clk 0:00:31]} 25. Qd2 {[%clk 0:01:05]}  h5 {[%clk 0:00:22]} 26. Ba6 {[%clk 0:01:04]}  Rb8 {[%clk 0:00:22]} 27. Bb4 {[%clk 0:01:02]}  Qh4 {[%clk 0:00:21]} 28. Rxc6 {[%clk 0:01:01]}  f4 {[%clk 0:00:04]} 29. Qc2 {[%clk 0:00:54]} 1-0


[Site "https://www.chess.com"]

[Event "Titled Tuesday Blitz June 27 Early 2023"]
[White "Goryachkina, Aleksandra"]
[Black "Bacrot, Etienne"]
[WhiteFideId "4147103"]
[BlackFideId "605506"]
[WhiteElo "2690"]
[BlackElo "2873"]
[Result "0-1"]
[Round "5"]
[TimeControl "180+2"]
[Date "2023.06.27"]
[WhiteClock "0:00:00"]
[BlackClock "0:00:19"]
[Board "30"]

1. e4 {[%clk 0:02:59]}  c5 {[%clk 0:02:59]} 2. Nf3 {[%clk 0:02:59]}  d6 {[%clk 0:02:59]} 3. Bb5+ {[%clk 0:02:59]}  Nd7 {[%clk 0:02:56]} 4. O-O {[%clk 0:02:55]}  Nf6 {[%clk 0:02:54]} 5. Re1 {[%clk 0:02:54]}  e5 {[%clk 0:02:53]} 6. c3 {[%clk 0:02:52]}  a6 {[%clk 0:02:54]} 7. Bxd7+ {[%clk 0:02:39]}  Nxd7 {[%clk 0:02:54]} 8. d4 {[%clk 0:02:39]}  Be7 {[%clk 0:02:54]} 9. Nbd2 {[%clk 0:02:32]}  b5 {[%clk 0:02:50]} 10. Nf1 {[%clk 0:02:19]}  O-O {[%clk 0:02:49]} 11. Ng3 {[%clk 0:02:06]}  g6 {[%clk 0:02:36]} 12. Bh6 {[%clk 0:02:05]}  Re8 {[%clk 0:02:36]} 13. Qd2 {[%clk 0:02:05]}  Qc7 {[%clk 0:02:35]} 14. Rad1 {[%clk 0:02:03]}  Nb6 {[%clk 0:02:29]} 15. b3 {[%clk 0:01:52]}  Bg4 {[%clk 0:02:20]} 16. d5 {[%clk 0:01:42]}  a5 {[%clk 0:02:09]} 17. h3 {[%clk 0:01:37]}  Bd7 {[%clk 0:01:54]} 18. Nh2 {[%clk 0:01:30]}  c4 {[%clk 0:01:48]} 19. bxc4 {[%clk 0:00:42]}  Nxc4 {[%clk 0:01:46]} 20. Qe2 {[%clk 0:00:42]}  Rec8 {[%clk 0:01:15]} 21. Ng4 {[%clk 0:00:41]}  Nb6 {[%clk 0:00:36]} 22. Rc1 {[%clk 0:00:32]}  Na4 {[%clk 0:00:35]} 23. Qf3 {[%clk 0:00:30]}  Qd8 {[%clk 0:00:35]} 24. Ne2 {[%clk 0:00:13]}  b4 {[%clk 0:00:32]} 25. cxb4 {[%clk 0:00:07]}  axb4 {[%clk 0:00:33]} 26. Ne3 {[%clk 0:00:05]}  Rxc1 {[%clk 0:00:20]} 27. Rxc1 {[%clk 0:00:05]}  Rc8 {[%clk 0:00:21]} 28. Rxc8 {[%clk 0:00:03]}  Qxc8 {[%clk 0:00:22]} 29. Ng4 {[%clk 0:00:02]}  Bxg4 {[%clk 0:00:18]} 30. Qxg4 {[%clk 0:00:02]}  Qxg4 {[%clk 0:00:18]} 31. hxg4 {[%clk 0:00:02]}  g5 {[%clk 0:00:19]} 32. Kf1 {[%clk 0:00:00]}  f6 {[%clk 0:00:19]} 0-1


[Site "https://www.chess.com"]

[Event "Titled Tuesday Blitz June 27 Early 2023"]
[White "Galchenko, Matvey"]
[Black "Veiga, Jose Francisco R P Neves"]
[WhiteFideId "24175480"]
[BlackFideId "1930087"]
[WhiteElo "2868"]
[BlackElo "2688"]
[Result "1-0"]
[Round "5"]
[TimeControl "180+2"]
[Date "2023.06.27"]
[WhiteClock "0:00:06"]
[BlackClock "0:00:04"]
[Board "31"]

1. f4 {[%clk 0:02:33]}  d6 {[%clk 0:02:34]} 2. Nf3 {[%clk 0:02:34]}  Nc6 {[%clk 0:02:34]} 3. g3 {[%clk 0:02:34]}  e5 {[%clk 0:02:34]} 4. d3 {[%clk 0:02:34]}  f5 {[%clk 0:02:34]} 5. Nc3 {[%clk 0:02:35]}  Nf6 {[%clk 0:02:35]} 6. Bg2 {[%clk 0:02:35]}  Be7 {[%clk 0:02:35]} 7. O-O {[%clk 0:02:35]}  O-O {[%clk 0:02:35]} 8. fxe5 {[%clk 0:02:35]}  dxe5 {[%clk 0:02:36]} 9. e4 {[%clk 0:02:34]}  fxe4 {[%clk 0:02:34]} 10. Nxe4 {[%clk 0:02:35]}  Nxe4 {[%clk 0:02:34]} 11. dxe4 {[%clk 0:02:35]}  Bc5+ {[%clk 0:02:33]} 12. Kh1 {[%clk 0:02:35]}  Qxd1 {[%clk 0:02:34]} 13. Rxd1 {[%clk 0:02:35]}  Bg4 {[%clk 0:02:34]} 14. Rf1 {[%clk 0:01:49]}  Bxf3 {[%clk 0:01:45]} 15. Rxf3 {[%clk 0:01:48]}  Rxf3 {[%clk 0:01:44]} 16. Bxf3 {[%clk 0:01:49]}  Nd4 {[%clk 0:01:45]} 17. Bd1 {[%clk 0:01:48]}  Rf8 {[%clk 0:01:45]} 18. Kg2 {[%clk 0:01:41]}  Nxc2 {[%clk 0:01:43]} 19. Rb1 {[%clk 0:01:28]}  Rf2+ {[%clk 0:01:37]} 20. Kh3 {[%clk 0:01:28]}  Nd4 {[%clk 0:01:34]} 21. Be3 {[%clk 0:01:24]}  Rf6 {[%clk 0:01:17]} 22. b4 {[%clk 0:01:23]}  Bb6 {[%clk 0:01:16]} 23. a4 {[%clk 0:01:23]}  Ne6 {[%clk 0:01:08]} 24. Bd2 {[%clk 0:01:18]}  Bg1 {[%clk 0:00:55]} 25. Bb3 {[%clk 0:01:10]}  Bd4 {[%clk 0:00:55]} 26. Rc1 {[%clk 0:00:57]}  c6 {[%clk 0:00:54]} 27. b5 {[%clk 0:00:58]}  Kf8 {[%clk 0:00:46]} 28. bxc6 {[%clk 0:00:56]}  bxc6 {[%clk 0:00:46]} 29. Kg4 {[%clk 0:00:49]}  Rg6+ {[%clk 0:00:33]} 30. Kf3 {[%clk 0:00:45]}  Ke8 {[%clk 0:00:30]} 31. a5 {[%clk 0:00:40]}  Kd7 {[%clk 0:00:29]} 32. Bc4 {[%clk 0:00:32]}  Rf6+ {[%clk 0:00:29]} 33. Kg4 {[%clk 0:00:32]}  Nc5 {[%clk 0:00:29]} 34. Bg5 {[%clk 0:00:23]}  Rg6 {[%clk 0:00:21]} 35. h4 {[%clk 0:00:21]}  Nxe4 {[%clk 0:00:21]} 36. Bf7 {[%clk 0:00:18]}  Rxg5+ {[%clk 0:00:11]} 37. hxg5 {[%clk 0:00:18]}  Nxg5 {[%clk 0:00:12]} 38. Bc4 {[%clk 0:00:14]}  Ne4 {[%clk 0:00:12]} 39. Re1 {[%clk 0:00:11]}  Nd6 {[%clk 0:00:10]} 40. Bd3 {[%clk 0:00:11]}  g6 {[%clk 0:00:10]} 41. Rh1 {[%clk 0:00:10]}  Ke6 {[%clk 0:00:08]} 42. Rxh7 {[%clk 0:00:10]}  Kf6 {[%clk 0:00:09]} 43. Rd7 {[%clk 0:00:09]}  Ke6 {[%clk 0:00:09]} 44. Rc7 {[%clk 0:00:08]}  e4 {[%clk 0:00:09]} 45. Bc2 {[%clk 0:00:06]}  Kd5 {[%clk 0:00:10]} 46. Kg5 {[%clk 0:00:05]}  e3 {[%clk 0:00:09]} 47. Bd3 {[%clk 0:00:06]}  c5 {[%clk 0:00:08]} 48. Kxg6 {[%clk 0:00:06]}  c4 {[%clk 0:00:09]} 49. Be2 {[%clk 0:00:06]}  Ne4 {[%clk 0:00:07]} 50. Bxc4+ {[%clk 0:00:06]}  Ke5 {[%clk 0:00:07]} 51. Re7+ {[%clk 0:00:05]}  Kd6 {[%clk 0:00:05]} 52. Rxe4 {[%clk 0:00:06]}  Kc5 {[%clk 0:00:04]} 53. Be2 {[%clk 0:00:06]} 1-0


[Site "https://www.chess.com"]

[Event "Titled Tuesday Blitz June 27 Early 2023"]
[White "Pichot, Alan"]
[Black "Kourkoulos-Arditis, Stamatis"]
[WhiteFideId "110973"]
[BlackFideId "4221990"]
[WhiteElo "2864"]
[BlackElo "2679"]
[Result "1-0"]
[Round "5"]
[TimeControl "180+2"]
[Date "2023.06.27"]
[WhiteClock "0:00:25"]
[BlackClock "0:00:00"]
[Board "32"]

1. e4 {[%clk 0:03:00]}  Nf6 {[%clk 0:02:55]} 2. e5 {[%clk 0:02:59]}  Nd5 {[%clk 0:02:55]} 3. d4 {[%clk 0:03:00]}  d6 {[%clk 0:02:55]} 4. Nf3 {[%clk 0:03:00]}  g6 {[%clk 0:02:55]} 5. Bc4 {[%clk 0:02:55]}  Nb6 {[%clk 0:02:55]} 6. Bb3 {[%clk 0:02:54]}  Bg7 {[%clk 0:02:56]} 7. Ng5 {[%clk 0:02:54]}  e6 {[%clk 0:02:55]} 8. Qf3 {[%clk 0:02:53]}  Qe7 {[%clk 0:02:56]} 9. Ne4 {[%clk 0:02:52]}  h6 {[%clk 0:02:56]} 10. exd6 {[%clk 0:02:33]}  cxd6 {[%clk 0:02:57]} 11. Bf4 {[%clk 0:02:33]}  d5 {[%clk 0:02:54]} 12. Nd6+ {[%clk 0:02:30]}  Kf8 {[%clk 0:02:54]} 13. c3 {[%clk 0:02:21]}  Nc6 {[%clk 0:02:36]} 14. O-O {[%clk 0:02:17]}  g5 {[%clk 0:02:30]} 15. Bg3 {[%clk 0:02:15]}  f5 {[%clk 0:02:13]} 16. Re1 {[%clk 0:01:22]}  f4 {[%clk 0:02:10]} 17. Nxc8 {[%clk 0:01:22]}  Rxc8 {[%clk 0:02:08]} 18. h3 {[%clk 0:01:23]}  Bxd4 {[%clk 0:01:26]} 19. cxd4 {[%clk 0:01:09]}  Nxd4 {[%clk 0:01:25]} 20. Qd3 {[%clk 0:01:10]}  Nxb3 {[%clk 0:01:19]} 21. axb3 {[%clk 0:01:10]}  fxg3 {[%clk 0:01:19]} 22. Qxg3 {[%clk 0:01:11]}  a6 {[%clk 0:01:12]} 23. Nc3 {[%clk 0:01:10]}  Kf7 {[%clk 0:01:07]} 24. Re3 {[%clk 0:01:06]}  d4 {[%clk 0:00:50]} 25. Rf3+ {[%clk 0:01:05]}  Kg6 {[%clk 0:00:50]} 26. Ne2 {[%clk 0:00:43]}  e5 {[%clk 0:00:42]} 27. Qg4 {[%clk 0:00:43]}  Rhf8 {[%clk 0:00:37]} 28. Qe4+ {[%clk 0:00:43]}  Kg7 {[%clk 0:00:33]} 29. Nxd4 {[%clk 0:00:44]}  Rxf3 {[%clk 0:00:29]} 30. Nxf3 {[%clk 0:00:44]}  Rc5 {[%clk 0:00:13]} 31. Re1 {[%clk 0:00:39]}  Nd5 {[%clk 0:00:10]} 32. Nd4 {[%clk 0:00:25]}  exd4 {[%clk 0:00:00]} 33. Qxd4+ {[%clk 0:00:25]} 1-0


[Site "https://www.chess.com"]

[Event "Titled Tuesday Blitz June 27 Early 2023"]
[White "Kvaloy, Aksel Bu"]
[Black "Fridman, Daniel"]
[WhiteFideId "1528815"]
[BlackFideId "11600454"]
[WhiteElo "2672"]
[BlackElo "2822"]
[Result "0-1"]
[Round "5"]
[TimeControl "180+2"]
[Date "2023.06.27"]
[WhiteClock "0:01:05"]
[BlackClock "0:01:52"]
[Board "36"]

1. e4 {[%clk 0:03:00]}  c6 {[%clk 0:02:55]} 2. d4 {[%clk 0:03:00]}  d5 {[%clk 0:02:56]} 3. exd5 {[%clk 0:03:00]}  cxd5 {[%clk 0:02:56]} 4. Bd3 {[%clk 0:03:01]}  Nc6 {[%clk 0:02:56]} 5. c3 {[%clk 0:02:59]}  Qc7 {[%clk 0:02:57]} 6. h3 {[%clk 0:02:57]}  g6 {[%clk 0:02:56]} 7. Nf3 {[%clk 0:02:56]}  Bf5 {[%clk 0:02:56]} 8. O-O {[%clk 0:02:55]}  Nf6 {[%clk 0:02:56]} 9. Ne1 {[%clk 0:02:54]}  Bg7 {[%clk 0:02:55]} 10. Bxf5 {[%clk 0:02:54]}  gxf5 {[%clk 0:02:56]} 11. Nd3 {[%clk 0:02:55]}  e6 {[%clk 0:02:56]} 12. Bf4 {[%clk 0:02:54]}  Qe7 {[%clk 0:02:56]} 13. Nd2 {[%clk 0:02:54]}  O-O {[%clk 0:02:53]} 14. Re1 {[%clk 0:02:53]}  Kh8 {[%clk 0:02:52]} 15. Nf1 {[%clk 0:02:53]}  Rg8 {[%clk 0:02:48]} 16. Ng3 {[%clk 0:02:53]}  Ne4 {[%clk 0:02:47]} 17. Nh5 {[%clk 0:02:52]}  Qh4 {[%clk 0:02:46]} 18. Kh2 {[%clk 0:02:13]}  Nxf2 {[%clk 0:02:26]} 19. Nxf2 {[%clk 0:02:12]}  Qxf2 {[%clk 0:02:26]} 20. b4 {[%clk 0:01:58]}  Be5 {[%clk 0:01:57]} 21. Bxe5+ {[%clk 0:01:48]}  Nxe5 {[%clk 0:01:54]} 22. Rg1 {[%clk 0:01:27]}  Ng4+ {[%clk 0:01:52]} 23. Kh1 {[%clk 0:01:05]}  Qh4 {[%clk 0:01:52]} 0-1


[Site "https://www.chess.com"]